Cogmind - Beta 17.1 @@@ ROGUE MODE // 2026.08.26 @ 09:45:12 Player: Feeks Result: Destroyed by S-10 Pest with Light Assault Rifle Performance ------------- Evolutions (1) 500 Regions Visited (2) 400 Robots Destroyed (14) 70 Value Destroyed (312) 312 Prototype IDs (0) 0 Alien Tech Used (0) 0 Bonus (0) 0 TOTAL SCORE: 1282 Bonus ------- None Cogmind --------- Core Integrity 0/400 Matter 261/300 Energy 99/100 System Corruption 2% Temperature Cool (0) Movement Core (50) Location -9/Materials Parts ------- > --- POWER (2) -------- (None) > --- PROPULSION (3) --- (None) > --- UTILITY (2) ------ (None) > --- WEAPON (2) ------- (None) > --- INVENTORY (5) ---- Huge Storage Unit High-capacity Matter Pod (200) Peak State ------------ > --- POWER ------------ Light Nuclear Core > --- PROPULSION ------- Wheel Wheel > --- UTILITY ---------- Weapon Shielding > --- WEAPON ----------- Improved Light Cannon Grenade Launcher > --- INVENTORY -------- Light Ion Engine Wheel Huge Storage Unit High-capacity Matter Pod [Rating: 9] Favorites ----------- Power Light Nuclear Core Engine Light Ion Engine Power Core Light Nuclear Core Propulsion Wheel Leg Aluminum Leg Wheel Wheel Utility Weapon Shielding Storage Huge Storage Unit Protection Weapon Shielding Weapon Grenade Launcher Energy Gun Medium Laser Ballistic Cannon Improved Light Cannon Launcher Grenade Launcher Build | -11 -10 -9 ------- Run | Yrd Mat Mat Slots Evolved 2 | . . 2 Power 1 | . . 1 Propulsion 1 | . . 1 Utility . | . . . Weapon . | . . . Parts Attached 13 | 4 6 3 Power 3 | 1 1 1 Engine 2 | 1 . 1 Core 1 | . 1 . Reactor . | . . . Propulsion 4 | 2 1 1 Treads . | . . . Leg 1 | . . 1 Wheel 3 | 2 1 . Hover . | . . . Flight . | . . . Utility 2 | . 2 . Device . | . . . Storage 1 | . 1 . Processor . | . . . Hackware . | . . . Protection 1 | . 1 . Artifact . | . . . Weapon 4 | 1 2 1 Energy Gun 2 | 1 . 1 Energy Cannon . | . . . Ballistic Gun . | . . . Ballistic Cannon 1 | . 1 . Launcher 1 | . 1 . Special Weapon . | . . . Impact Weapon . | . . . Slashing Weapon . | . . . Piercing Weapon . | . . . Special Melee Weapon . | . . . Unidentified Prototypes . | . . . Parts Lost 9 | . . 9 Power 2 | . . 2 Propulsion 4 | . . 4 Utility 1 | . . 1 Weapon 2 | . . 2 Highest Loss Streak 4 | . . 4 To Critical Strikes . | . . . Average Backups 3 | 2 3 3 Power . | . . . Propulsion . | 2 . . Utility 1 | . 1 2 Weapon . | . . . Tool/Special . | . . . Unused Backups 4 | . 2 2 Power . | . . . Propulsion 3 | . 2 1 Utility 1 | . . 1 Weapon . | . . . Tool/Special . | . . . Average Slot Usage (%) 62 | . 73 35 Engine 1 | . 1 1 Core 9 | . 12 2 Wheel 23 | . 27 13 Protection 4 | . 5 2 Energy Gun 4 | . 5 3 Ballistic Cannon 7 | . 8 6 Launcher 8 | . 11 2 Peak Build Rating 9 | 4 9 9 Average Rating 6 | 1 7 4 On Entrance 4 | . 4 9 Avg Prop Armor Cover (%) 14 | . . 14 Naked Turns 2 | . . 2 Heaviest Build 13 | 5 13 13 Greatest Support 20 | 20 20 20 Greatest Overweight (x) 1 | . 1 . Average Overweight (x) . | . . . Largest Inventory Capacity 25 | 5 25 5 Average Capacity 5 | 5 5 5 Most Carried 5 | 5 5 5 Average Carried 3 | 2 3 3 Final Capacity 5 | 5 5 5 Final Carried 4 | 2 4 2 Class Distribution -------------------- 100% | Mutant Dominant Class ---------------- Mutant | -10/Materials Mutant | -9/Materials Resources | -11 -10 -9 ----------- Run | Yrd Mat Mat Matter Collected 701 | 240 335 126 Remotely . | . . . Salvage Created 254 | 42 40 172 Parts 25 | 2 6 17 Haulers Intercepted . | . . . Recyclers Shooed . | . . . Parts Field Recycled . | . . . Retrieved Matter . | . . . Parts Self-Destructed . | . . . Prevented . | . . . Parts Restored . | . . . Kills | -11 -10 -9 ------- Run | Yrd Mat Mat Combat Hostiles Destroyed 10 | 1 3 6 Guns 4 | 1 . 3 Cannons 2 | . . 2 AOE 4 | . 3 1 Classes Destroyed 5 | 1 3 1 Tunneler 1 | . . 1 Operator 2 | . 1 1 Watcher 1 | . 1 . Swarmer 4 | . 3 1 Grunt 6 | 1 . 5 Best Kill Streak 3 | 1 3 3 Combat Bots Only 3 | 1 3 2 Max Kills in Single Turn 2 | 1 1 2 Gunslinging . | . . . Exploded 1 | . 1 1 Melee . | . . . Uniques/NPCs Destroyed . | . . . Combat | -11 -10 -9 -------- Run | Yrd Mat Mat Hostile Shots Fired 128 | 3 8 117 Missed 32 | . 4 28 Hits 96 | 3 4 89 Projectile 96 | 3 4 89 Damage Taken 1083 | 35 61 987 Core 425 | 12 10 403 Absorbed by Shields . | . . . Redirected to Shielding 50 | . 3 47 Regen/Repaired (Parts) 48 | . 48 . Core Remaining (%) 93 | 95 91 . Volleys Fired 62 | 4 11 47 Largest 1 | 1 1 1 Hottest 50 | 50 50 40 Shots Fired 62 | 4 11 47 Gun 24 | 4 2 18 Cannon 27 | . 2 25 Launcher 11 | . 7 4 Special . | . . . Kinetic 27 | . 2 25 Thermal 24 | 4 2 18 Explosive 11 | . 7 4 Electromagnetic . | . . . Robot Hit Streak 6 | 2 3 6 Robot Miss Streak 6 | 1 1 6 Penetration Max . | . . . Secondary Targets . | . . . Shots Hit Robots 32 | 3 7 22 Core Hits 22 | 2 7 13 Critical Kills . | . . . Critical Parts Destroyed . | . . . Critical Strikes 1 | 1 . . Burn 1 | 1 . . Melee Attacks . | . . . Impact . | . . . Slashing . | . . . Piercing . | . . . Sneak Attacks . | . . . Combat Hostiles . | . . . Follow-up Attacks . | . . . Damage Inflicted 980 | 39 339 602 Guns 154 | 39 12 103 Cannons 281 | . 23 258 Explosions 543 | . 304 239 Melee . | . . . Ramming 2 | . . 2 Kinetic 281 | . 23 258 Thermal 154 | 39 12 103 Explosive 543 | . 304 239 Electromagnetic . | . . . Impact . | . . . Slashing . | . . . Piercing . | . . . Highest Corruption 2 | . . 2 Average Corruption 2 | . . 2 Corruption Purged . | . . . Corruption Blocked . | . . . Effects 1 | . . 1 Parts Rejected 1 | . . 1 Overload Shots . | . . . Overflow Damage 56 | . 56 . Projectiles . | . . . Explosions 56 | . 56 . Melee . | . . . Knockbacks 2 | . . 2 Impact . | . . . Kinetic 2 | . . 2 Secondary . | . . . Self-Inflicted Damage 33 | . 32 1 Shots 1 | . 1 . Rammed 1 | . . 1 Targets Rammed 1 | . . 1 Kicked . | . . . Crushed . | . . . Highest Temperature 58 | 58 10 24 Average Temperature 15 | 33 7 9 Received Heat Transfer 348 | 18 . 330 Siege Activations . | . . . Martial Activations . | . . . Shielding Activations . | . . . Robots Disrupted . | . . . Combat Hostiles . | . . . Robots Corrupted . | . . . Combat Hostiles . | . . . Parts Fried . | . . . Impact Corruptions . | . . . Robots Melted . | . . . Combat Hostiles . | . . . Parts Melted 1 | . . 1 Heat Transferred 447 | 185 37 225 Parts Sabotaged . | . . . Parts Stolen . | . . . Parts Stripped . | . . . Power Chain Reactions . | . . . Alert | -11 -10 -9 ------- Run | Yrd Mat Mat Maximum Alert Level . | . . . Low Security (%) 100 | 100 100 100 Level 1 . | . . . Level 2 . | . . . Level 3 . | . . . Level 4 . | . . . Level 5 . | . . . High Security . | . . . Max Security . | . . . Peak Influence 125 | 20 80 125 Initial 13 | . 13 11 Average 24 | 2 16 53 Influence Increases 397 | 20 109 268 Destroy 0b10 Robot/C 200 | 20 60 120 Destroy 0b10 Robot/NC 20 | . 10 10 Destroy Leader 32 | . 12 20 Successful Hack 3 | . 3 . Destroy Structure 37 | . 24 13 Lose Combat Pursuer 105 | . . 105 Influence Decreases 292 | . 102 190 Entered New Map 23 | . 7 16 Time Decay 185 | . 95 90 Lost Part 84 | . . 84 Squads Dispatched 3 | . 1 2 Investigation . | . . . Extermination . | . . . Reinforcement 3 | . 1 2 Assault . | . . . Garrison . | . . . Intercept . | . . . Searches Triggered . | . . . Construction Impeded . | . . . Haulers Reinforced . | . . . Active Scanning Responses . | . . . Cargo Convoy Interrupts . | . . . Stealth | -11 -10 -9 --------- Run | Yrd Mat Mat Distress Signals 1 | . . 1 Communications Jammed . | . . . Distress Signals . | . . . Times Spotted 30 | 1 6 23 Peak Tracking Total 8 | 1 3 8 Tactical Retreats 4 | . . 4 Traps | -11 -10 -9 ------- Run | Yrd Mat Mat Traps Triggered 1 | . 1 . Indirectly . | . . . Trap Hack Attempts . | . . . Triggered . | . . . Disarmed . | . . . Reprogrammed . | . . . Reused . | . . . Traps Extracted . | . . . Installed . | . . . Triggered . | . . . Machines | -11 -10 -9 ---------- Run | Yrd Mat Mat Machines Disabled . | . . . Max in Single Turn . | . . . Machines Repaired . | . . . Machines Dismantled . | . . . Machines Sabotaged . | . . . Overloaded Fab Kills . | . . . Hacking | -11 -10 -9 --------- Run | Yrd Mat Mat Machines Accessed 2 | . 2 . Terminals . | . . . Fabricators . | . . . Repair Stations 1 | . 1 . Recycling Units 1 | . 1 . Scanalyzers . | . . . Garrison Access . | . . . Total Hacks 6 | . 6 . Successful 6 | . 6 . Failed . | . . . Catastrophic . | . . . Database Lockouts . | . . . Manual . | . . . Terminals . | . . . Fabricators . | . . . Repair Stations 4 | . 4 . Recycling Units 2 | . 2 . Scanalyzers . | . . . Garrison Access . | . . . Terminal Hacks . | . . . Fabricator Hacks . | . . . Repair Station Hacks 4 | . 4 . Scan Component 2 | . 2 . Repair 2 | . 2 . Recycling Unit Hacks 2 | . 2 . Process 1 | . 1 . Report Inventory 1 | . 1 . Scanalyzer . | . . . Garrison Access Hacks . | . . . Unauthorized Hacks . | . . . Terminals . | . . . Fabricators . | . . . Repair Stations . | . . . Recycling Units . | . . . Scanalyzers . | . . . Garrison Access . | . . . Data Cores Recovered 1 | . 1 . Used . | . . . Hacking Detections 2 | . 2 . Full Trace Events 1 | . 1 . Feedback Events . | . . . Feedback Blocked . | . . . Robot Schematics Acquired . | . . . Robots Built . | . . . Authchips . | . . . Time . | . . . Total Robot Build Rating . | . . . Part Schematics Acquired . | . . . Parts Built . | . . . Authchips . | . . . Time . | . . . Total Part Build Rating . | . . . Part Studies Acquired . | . . . Parts Repaired 2 | . 2 . Time 52 | . 52 . Parts Recycled . | . . . Recycled Matter 190 | . 190 . Retrieved Matter . | . . . Retrieved Components . | . . . Parts Scanalyzed . | . . . Part Schematics Acquired . | . . . Parts Damaged . | . . . Bothacking | -11 -10 -9 ------------ Run | Yrd Mat Mat Used RIF Installer . | . . . Robots Hacked . | . . . Non-combat . | . . . Combat . | . . . Robot Hacks Applied . | . . . Relay Couplers Released . | . . . Fabnet Peak Effective % . | . . . Robots Rewired . | . . . Allies Hacked . | . . . Hacks Repelled . | . . . Allies | -11 -10 -9 -------- Run | Yrd Mat Mat Total Allies . | . . . Largest Group . | . . . Highest-Rated Group . | . . . Highest-Rated Ally . | . . . Total Orders . | . . . Ally Attacks . | . . . Total Damage . | . . . Kills . | . . . Allies Corrupted . | . . . Allies Melted . | . . . Intel | -11 -10 -9 ------- Run | Yrd Mat Mat Active Infowar (turns) . | . . . Robot Analysis Total . | . . . Derelict Logs Recovered . | . . . Drone Launches . | . . . Drone Recoveries . | . . . Exploration | -11 -10 -9 ------------- Run | Yrd Mat Mat Turns Passed 840 | 75 547 218 Spaces Moved 868 | 97 625 146 Core 73 | 69 . 4 Treads . | . . . Legs . | . . . Wheels 795 | 28 625 142 Hover . | . . . Flight . | . . . Fastest Speed 50 | 50 80 50 Average Speed 77 | 58 80 79 Slowest Speed 95 | 80 95 80 Overloaded Moves . | . . . Propulsion Burnouts . | . . . Robots Hopped . | . . . Potential Cave-ins . | . . . Cave-ins Triggered . | . . . Exploration Rate (%) 32 | 5 74 18 Regions Visited 2 Branch Regions . Pre-discovered Areas . | . . . Known Exits Taken . | . . . Unknown Exits Taken 2 | 1 1 . Scrap Searched . | . . . Spaces Dug . | . . . Terrain Destroyed 39 | . 28 11 Melee . | . . . Projectile . | . . . AOE 39 | . 28 11 Terrain Rammed . | . . . Walls Destroyed . | . . . Machines Disabled . | . . . Actions | -11 -10 -9 --------- Run | Yrd Mat Mat Total 975 | 110 661 204 Wait . | . . . Move 866 | 96 624 146 Hop . | . . . Pick Up 23 | 6 13 4 Fast Attach . | . . . Attach 16 | 4 8 4 Detach . | . . . Swap 1 | . 1 . Drop 6 | . 4 2 Fire 62 | 4 11 47 Melee . | . . . Ram 1 | . . 1 Kick . | . . . Crush . | . . . Escape Stasis . | . . . Rewire . | . . . Trap . | . . . Miscellaneous . | . . . Route ------- -11/Scrapyard -10/Materials (discovered 4 exits: [*Mat x2] / [*Min] / [*Sub]) -9/Materials History --------- Turn | Location | Event 2 | -11/Scrapyard | Met Revision 17 56 | -11/Scrapyard | Discovered new exit (range 8) 76 | -11/Scrapyard | Entered Materials 77 | -10/Materials | Met a group of wandering Federalists 198 | -10/Materials | Discovered new exit (range 7) 296 | -10/Materials | Discovered new exit (range 13) 310 | -10/Materials | Build established: Mutant 332 | -10/Materials | Discovered new exit (range 13) 344 | -10/Materials | Discovered new exit (range 5) 420 | -10/Materials | Repaired Wheel? 568 | -10/Materials | Repaired Wheel 623 | -10/Materials | Entered another Materials area 623 | -9/Materials | Evolved 2 slots: Power x1, Propulsion x1 705 | -9/Materials | Lost 4 parts (1p1n1u1w) 803 | -9/Materials | Core integrity fell below 50% 834 | -9/Materials | Core integrity fell below 20% 841 | -9/Materials | Destroyed by S-10 Pest with Light Assault Rifle Last Messages --------------- 00767_ Aluminum Leg melted. 00767_ G-34 Mercenary destroyed. 00770_ Acquired 35 matter. 00771_ Acquired 30 matter. 00773_ Dropped Lgt. Ion Engine. 00773_ Acquired Ion Engine. Different forms of propulsion may not be used simultaneously, Wheel automatically deactivated. 00796_ S-10 Pest destroyed. 00802_ Wheel destroyed. 00815_ Slammed into S-10 Pest. Ramming works as a last resort when unarmed or blocked, but can have serious negative consequences. 00815_ Destabilizing: System corrupted (+2). 00815_ Ion Engine destroyed. 00829_ System corrupted: Sml. Laser rejected. 00830_ Aluminum Leg destroyed. 00839_ Wheel destroyed. Map ----- +----------------------------------------------------+ | ?????????????????????????????????????????# # # | | ?????????????????????????????????????????# # # | | ?????????????????????????????????????????# # # | | ?????????????????????????????????????????# # # | | ?????????????????????????????????????????# # # | | ?????????????????????????????????????????# # | | ?????????????????????????????????????????# # | | ?????????????????????????????????????????# # | | ?????????????????????????????????????????# # | | ?????????????????????????????????????????# =#* | | ?????????????????????????????????????????# = !* ! | | ?????????????????????????????????????????# ##+#### | | ?????????????????????????????????????????# # | | ?????????????????????????????????????????# + | | ???????????????????????????????########### # """ | | ???????????????????????????????# """ """ # # """ | | ???????????????????????????????# """ """ # # """ | | ??????????????????????######???# """ """ # # | | ??????????????????????# ???# # ######+ | | ??????????????????????# ???# + | | ??????????????????????# ""????# # | | ??????????????????????+ ""????# ######### | | ??????????????????????? "?????# = #???????? | | ??????????????????????? ?????#######/########### | | ??????????????????????##+############ % | | ??????????????????????# @[g gg | | ??????????????????????# s# #######/############ | | ??????????????????????# s# # #????? | | ??????????????????????# # / #????? | | ??????????????????????# s #### #????? | | ??????????????????????# #??# """"" #????? | | ??????????????????????# #??# """"""""" #????? | | ??????????????????????######??# """ """ #????? | | ??????????????????????????????###############????? | | | | | | | | | | | | | | | | | | | | | | | | | | | | | | | | | +----------------------------------------------------+ Best States ------------- Heat Dissipation 28 Energy Generation 14 Energy Capacity 250 Matter Stores 300 Matter Capacity 300 Sight Range 16 Terrain Scan Density 10 Weapon Shielding 33 Evasion (%) 50 Item Schematics ----------------- None Robot Schematics ------------------ None Fabricated ------------ Nothing Repaired ---------- Wheel | 62% | -10/Materials Wheel | 17% | -10/Materials Studied --------- None Alien Tech Used ----------------- None Achievements -------------- Part-time Mechanic There's More Where That Came From Challenges ------------ None Game ------ Seed PortableScimitarProcessor Manual? 0 Play Time 00:44:48 Cumulative 2.0 hours Start 2026.08.26 @ 08:55:34 End 2026.08.26 @ 09:45:12 Sessions 2 Manual Loads 0 Difficulty Rogue Special Mode None Game No. 3 Rogue 3 Adventurer 0 Explorer 0 Win Type - Total 0 Types 0/0/0/0/0/0/0/0/0/0 Lore% 1 Gallery% 2 Achievement% 4 Wizard Run 0 Options --------- Layout 2 ASCII 0 Keyboard 0 Movement Mouse Keybinds 0 Fullscreen 1 Font 16/SmallcapsGlow Map View 50x49 Zoom Use 0% Tactical HUD 1 Map Filters NONE Filters NONE Steam SD RUN: c37c8653-3e30-4bfb-a8c3-34c318b859c5